[Event "Hungarian Youth-ch I 2024"]
[Site "Szolnok"]
[Date "2024.04.06"]
[Round "9.12"]
[White "Feher, Botond"]
[Black "Bod, Marton"]
[Result "1-0"]
[ECO "B40"]
[WhiteElo "2018"]
[BlackElo "1870"]
[Annotator "RC"]
[PlyCount "57"]
[EventDate "2024.03.31"]
[EventType "swiss"]
[EventCountry "HUN"]
[SourceTitle "playchess.com"]
[Source "ChessBase"]
[SourceQuality "1"]
[TimeControl "5400+30"]

1. e4 {[%emt 0:00:08]} c5 {[%emt 0:00:25]} 2. Nf3 {[%emt 0:00:04]} e6 {[%emt 0:00:08]} 3. c4 {[%emt 0:00:06]} Nc6 {[%emt 0:00:46]} 4. Nc3 {[%emt 0:00:09]} Nge7 {[%emt 0:01:46]} 5. Be2 {[%emt 0:00:41]} g6 {[%emt 0:01:40]} 6. d4 {[%emt 0:00:22]} cxd4 {[%emt 0:08:43]} 7. Nxd4 {[%emt 0:00:39]} a6 {[%emt 0:01:11]} 8. Bg5 {[%emt 0:03:16]} Bg7 {[%emt 0:01:40]} 9. Nxc6 {[%emt 0:05:13]} bxc6 {[%emt 0:00:24]} 10. Qd6 {[%emt 0:03:25]} f6 {[%emt 0:03:57]} 11. Be3 {[%emt 0:00:55]} Kf7 {[%emt 0:04:25]} 12. O-O-O {[%emt 0:01:55]} Qa5 {[%emt 0:03:10]} 13. f4 {[%emt 0:07:28]} Re8 {[%emt 0:03:32]} 14. h4 {[%emt 0:08:29]} f5 {[%emt 0:08:03]} 15. e5 {[%emt 0:00:50]} h5 {[%emt 0:03:17]} 16. Bc5 {[%emt 0:02:55]} Bf8 {[%emt 0:01:42]} 17. Qd4 {[%emt 0:01:31]} Nd5 {[%emt 0:04:53]} 18. Bxf8 {[%emt 0:00:56]} Nxc3 {[%emt 0:00:10]} 19. Qxc3 {[%emt 0:00:09]} Qxc3+ {[%emt 0:00:17]} 20. bxc3 {[%emt 0:00:08]} Rxf8 {[%emt 0:01:14]} 21. c5 {[%emt 0:01:49]} a5 {[%emt 0:01:41]} 22. Kc2 {[%emt 0:00:48]} a4 {[%emt 0:02:45]} 23. Rd4 {[%emt 0:07:47]} Ke7 {[%emt 0:02:28]} 24. Rb4 {[%emt 0:05:55]} Ra5 {[%emt 0:05:54]} 25. Rhb1 {[%emt 0:02:43]} Ba6 {[%emt 0:00:58]} 26. Bf3 {[%emt 0:00:59]} Ra8 {[%emt 0:00:47]} 27. Kd2 {[%emt 0:02:22]} Rb5 {[%emt 0:10:21]} 28. Rxb5 Bxb5 {[%emt 0:00:09]} 29. Rxb5 {[%emt 0:00:47]} 1-0

[Event "Hungarian Youth-ch I 2024"]
[Site "Szolnok"]
[Date "2024.04.06"]
[Round "9.13"]
[White "Kovacs, Kristof"]
[Black "Sinoros-Szabo, Daniel"]
[Result "1-0"]
[ECO "C48"]
[WhiteElo "2000"]
[BlackElo "1971"]
[Annotator "NA RC"]
[PlyCount "93"]
[EventDate "2024.03.31"]
[EventType "swiss"]
[EventCountry "HUN"]
[SourceTitle "playchess.com"]
[Source "ChessBase"]
[SourceQuality "1"]
[TimeControl "5400+30"]

1. e4 {[%emt 0:00:07]} e5 {[%emt 0:00:17]} 2. Nf3 {[%emt 0:00:16]} Nc6 {[%emt 0:00:10]} 3. Nc3 {[%emt 0:00:16]} Nf6 {[%emt 0:00:19]} 4. Bb5 {[%emt 0:00:38]} Bd6 {[%emt 0:00:59]} 5. a3 {[%emt 0:00:29]} O-O {[%emt 0:01:34]} 6. d3 {[%emt 0:00:15] C48: Four Knights: 4 Bb5, replies other than 4...Bb4.} Re8 {[%emt 0:05:28] 6...Nd4 is the modern continuation.} 7. g4 {[%emt 0:02:51]} Nxg4 {[%emt 0:10:40]} 8. Rg1 {[%emt 0:00:11]} Nf6 {[%emt 0:01:54]} 9. Bg5 {[%emt 0:00:36]} Bf8 $146 {[%emt 0:05:08] [#]} ({Predecessor:} 9... Be7 $11 10. Bxc6 dxc6 11. Nxe5 Nd5 12. Qf3 f5 13. Qh5 Bxg5 14. Qf7+ Kh8 15. Rxg5 Qe7 16. Nxd5 cxd5 17. Qxe7 Rxe7 {½-½ Rosales Campos,P (2039)-Diaz Perez,M (2459) Iberoamerican-ch 8th 2022 (3)}) 10. Nd5 {[%emt 0:02:00]} ({White should play} 10. Bc4 $1 $16) 10... Be7 {[%emt 0:01:26]} 11. Nxe7+ {[%emt 0:00:45]} Qxe7 {[%emt 0:00:22]} 12. Nh4 {[%emt 0:01:41]} d6 $1 {[%emt 0:02:13]} 13. Qd2 {[%emt 0:07:47]} Kh8 {[%emt 0:05:12]} 14. O-O-O {[%emt 0:02:16]} a6 {[%emt 0:10:27]} 15. Bc4 {[%emt 0:00:25]} ({Better is} 15. Bxc6 $14 bxc6 16. f4) 15... Be6 {[%emt 0:01:53]} 16. Rg3 {[%emt 0:05:34]} Rg8 {[%emt 0:08:47]} 17. Rdg1 {[%emt 0:03:38]} Nd4 {[%emt 0:09:03]} 18. Bxe6 {[%emt 0:02:42]} Qxe6 {[%emt 0:00:47]} 19. Kb1 {[%emt 0:00:17]} Nh5 {[%emt 0:04:15]} 20. R3g2 {[%emt 0:03:19]} f6 {[%emt 0:05:41]} 21. Be3 {[%emt 0:00:47]} Qh3 {[%emt 0:01:54]} 22. Bxd4 {[%emt 0:03:17]} Qxh4 {[%emt 0:01:41]} 23. Be3 {[%emt 0:00:09]} Qh3 {[%emt 0:05:23]} 24. Rg4 {[%emt 0:01:49]} g5 {[%emt 0:02:13]} 25. Qc3 {[%emt 0:01:02]} Rg7 {[%emt 0:02:10]} 26. R1g2 {[%emt 0:01:03]} Rag8 {[%emt 0:01:05]} 27. Qb3 {[%emt 0:01:05]} b6 {[%emt 0:01:05]} 28. Qe6 {[%emt 0:00:45]} Qf3 {[%emt 0:01:10]} 29. Ka2 {[%emt 0:00:58]} Rf8 {[%emt 0:03:40]} 30. h4 $11 {[%emt 0:00:44]} h6 {[%emt 0:02:49]} 31. hxg5 {[%emt 0:00:45]} hxg5 {[%emt 0:00:31]} 32. Rh2 {[%emt 0:01:05]} Rh7 {[%emt 0:00:22]} 33. Rg1 {[%emt 0:05:56]} Rg8 {[%emt 0:02:55]} 34. Rh3 {[%emt 0:00:28]} Qe2 {[%emt 0:00:41]} 35. Rgh1 {[%emt 0:00:11]} Rf8 {[%emt 0:01:55]} 36. Qf5 {[%emt 0:00:21]} Kg7 {[%emt 0:00:25]} 37. Bxg5 {[%emt 0:00:54]} fxg5 {[%emt 0:00:42]} 38. Qxg5+ {[%emt 0:00:04]} Kf7 {[%emt 0:00:50]} 39. Rxh5 {[%emt 0:00:04]} Rxh5 {[%emt 0:00:32]} 40. Rxh5 {[%emt 0:00:03]} Ke6 {[%emt 0:00:57]} 41. Rh6+ {[%emt 0:00:07]} Kd7 {[%emt 0:00:43]} 42. Qg7+ {[%emt 0:00:04]} Kc6 {[%emt 0:00:07]} 43. Qxf8 {[%emt 0:00:06]} Qxc2 {[%emt 0:00:09]} 44. Rxd6+ {[%emt 0:00:18]} Kb7 {[%emt 0:00:26]} 45. Rd8 {[%emt 0:00:06]} Kc6 {[%emt 0:00:31]} 46. Qe8+ {[%emt 0:00:11]} Kc5 {[%emt 0:00:08]} 47. Qxe5+ {[%emt 0:00:05]} 1-0

[Event "Hungarian Youth-ch I 2024"]
[Site "Szolnok"]
[Date "2024.04.06"]
[Round "9.14"]
[White "Janosi, Bence"]
[Black "Karacsonyi, Bank"]
[Result "0-1"]
[ECO "E20"]
[WhiteElo "1893"]
[BlackElo "1940"]
[Annotator "RC"]
[PlyCount "46"]
[EventDate "2024.03.31"]
[EventType "swiss"]
[EventCountry "HUN"]
[SourceTitle "playchess.com"]
[Source "ChessBase"]
[SourceQuality "1"]
[TimeControl "5400+30"]

1. d4 {[%emt 0:00:06]} Nf6 2. c4 e6 {[%emt 0:00:13]} 3. Nc3 {[%emt 0:00:11]} Bb4 {[%emt 0:00:06]} 4. g3 {[%emt 0:00:21]} O-O {[%emt 0:00:31]} 5. Bg2 {[%emt 0:00:11]} d5 {[%emt 0:00:01]} 6. Nf3 {[%emt 0:00:28]} Nc6 {[%emt 0:06:53]} 7. O-O {[%emt 0:01:32]} dxc4 {[%emt 0:00:55]} 8. Qa4 {[%emt 0:01:29]} Bd7 {[%emt 0:07:17]} 9. Qc2 {[%emt 0:08:00]} Rb8 {[%emt 0:04:23]} 10. e4 {[%emt 0:06:03]} Bxc3 {[%emt 0:01:52]} 11. bxc3 {[%emt 0:00:32]} h6 {[%emt 0:08:18]} 12. Nd2 {[%emt 0:04:20]} b5 {[%emt 0:07:57]} 13. f4 {[%emt 0:03:10]} Bc8 {[%emt 0:02:00]} 14. Rd1 {[%emt 0:12:26]} Nxd4 {[%emt 0:04:41]} 15. cxd4 {[%emt 0:02:56]} Qxd4+ {[%emt 0:00:07]} 16. Kh1 {[%emt 0:01:25]} Ng4 {[%emt 0:00:21]} 17. Rf1 {[%emt 0:02:32]} Ne3 {[%emt 0:03:18]} 18. Bb2 {[%emt 0:02:19]} Nxc2 {[%emt 0:00:34]} 19. Bxd4 {[%emt 0:00:15]} Nxd4 {[%emt 0:00:02]} 20. Rab1 {[%emt 0:00:43]} c3 {[%emt 0:00:40]} 21. Nb3 {[%emt 0:00:38]} Nxb3 {[%emt 0:00:39]} 22. Rxb3 {[%emt 0:00:19]} b4 {[%emt 0:00:13]} 23. a3 {[%emt 0:00:51]} c5 {[%emt 0:00:29]} 0-1

[Event "Hungarian Youth-ch I 2024"]
[Site "Szolnok"]
[Date "2024.04.06"]
[Round "9.15"]
[White "Hangay, Oliver"]
[Black "Minga-Nagy, Abel Inti"]
[Result "1/2-1/2"]
[ECO "B35"]
[WhiteElo "1962"]
[BlackElo "1929"]
[Annotator "RC"]
[PlyCount "111"]
[EventDate "2024.03.31"]
[EventType "swiss"]
[EventCountry "HUN"]
[SourceTitle "playchess.com"]
[Source "ChessBase"]
[SourceQuality "1"]
[TimeControl "5400+30"]

1. e4 {[%emt 0:00:11]} c5 {[%emt 0:00:12]} 2. Nf3 {[%emt 0:00:04]} Nc6 {[%emt 0:00:04]} 3. d4 {[%emt 0:00:04]} cxd4 {[%emt 0:00:03]} 4. Nxd4 {[%emt 0:00:03]} g6 {[%emt 0:00:07]} 5. Nc3 {[%emt 0:00:04]} Bg7 {[%emt 0:00:04]} 6. Be3 {[%emt 0:00:04]} Nf6 {[%emt 0:00:06]} 7. Bc4 {[%emt 0:00:16]} Qa5 {[%emt 0:00:06]} 8. O-O {[%emt 0:00:08]} O-O {[%emt 0:00:24]} 9. Nb3 {[%emt 0:00:13]} Qc7 {[%emt 0:00:40]} 10. Bg5 {[%emt 0:00:45]} Na5 {[%emt 0:19:19]} 11. Be2 {[%emt 0:12:01]} Nxb3 {[%emt 0:00:32]} 12. axb3 {[%emt 0:00:27]} Qe5 {[%emt 0:21:11]} 13. f4 {[%emt 0:04:32]} Qc5+ {[%emt 0:01:39]} 14. Kh1 {[%emt 0:00:15]} d6 {[%emt 0:04:03]} 15. Bf3 {[%emt 0:10:00]} e5 {[%emt 0:03:48]} 16. Be2 {[%emt 0:12:57]} exf4 {[%emt 0:15:04]} 17. Bxf4 {[%emt 0:00:44]} d5 {[%emt 0:02:33]} 18. Be5 {[%emt 0:04:35]} Nxe4 {[%emt 0:07:40]} 19. Nxe4 {[%emt 0:00:49]} dxe4 {[%emt 0:00:06]} 20. Bd6 {[%emt 0:01:03]} Qg5 {[%emt 0:01:30]} 21. Bxf8 {[%emt 0:00:08]} Kxf8 {[%emt 0:00:22]} 22. Bc4 {[%emt 0:01:35]} Bf6 {[%emt 0:00:46]} 23. Qd6+ {[%emt 0:00:46]} Kg7 {[%emt 0:00:23]} 24. Qc7 {[%emt 0:00:30]} Bf5 {[%emt 0:00:25]} 25. Qxf7+ {[%emt 0:05:03]} Kh6 {[%emt 0:00:11]} 26. Ra5 {[%emt 0:28:19]} e3 {[%emt 0:03:04]} 27. Qxb7 {[%emt 0:00:54]} Re8 {[%emt 0:01:01]} 28. Qf3 {[%emt 0:03:20]} Be5 {[%emt 0:01:06]} 29. Bd3 {[%emt 0:03:45]} Bg4 {[%emt 0:03:56]} 30. Qe4 {[%emt 0:01:41]} Bf5 {[%emt 0:01:11]} 31. Rxe5 {[%emt 0:03:55]} Bxe4 {[%emt 0:00:10]} 32. Rxg5 {[%emt 0:00:08]} Bxd3 {[%emt 0:00:10]} 33. cxd3 {[%emt 0:01:34]} Kxg5 {[%emt 0:00:04]} 34. Re1 {[%emt 0:01:07]} Kf4 {[%emt 0:01:13]} 35. Kg1 {[%emt 0:00:59]} Rd8 {[%emt 0:00:38]} 36. Rf1+ {[%emt 0:00:33]} Ke5 {[%emt 0:00:55]} 37. Rd1 {[%emt 0:00:03]} Kd4 {[%emt 0:00:25]} 38. Kf1 {[%emt 0:01:42]} Rf8+ {[%emt 0:00:20]} 39. Ke1 {[%emt 0:00:04]} Rc8 {[%emt 0:04:33]} 40. b4 {[%emt 0:00:36]} Rc2 {[%emt 0:00:19]} 41. Ra1 {[%emt 0:00:04]} Kxd3 {[%emt 0:00:13]} 42. Ra3+ {[%emt 0:00:03]} Kd4 {[%emt 0:04:51]} 43. Rxa7 {[%emt 0:00:08]} Rxb2 {[%emt 0:02:01]} 44. Rxh7 {[%emt 0:00:06]} Rxg2 {[%emt 0:00:26]} 45. b5 {[%emt 0:00:31]} Kc5 {[%emt 0:00:29]} 46. Re7 {[%emt 0:00:12]} Kxb5 {[%emt 0:01:12]} 47. Rxe3 {[%emt 0:00:06]} Rxh2 {[%emt 0:00:50]} 48. Rg3 {[%emt 0:00:13]} Rh6 {[%emt 0:00:09]} 49. Ke2 {[%emt 0:00:13]} Kc5 {[%emt 0:00:21]} 50. Kf3 {[%emt 0:00:13]} Kd5 {[%emt 0:01:17]} 51. Kf4 {[%emt 0:00:17]} Ke6 {[%emt 0:00:30]} 52. Kg5 {[%emt 0:00:07]} Rh8 {[%emt 0:00:14]} 53. Rf3 {[%emt 0:00:02]} Rg8 {[%emt 0:00:24]} 54. Rf6+ {[%emt 0:00:04]} Ke5 {[%emt 0:00:07]} 55. Rxg6 {[%emt 0:00:04]} Rxg6+ {[%emt 0:00:34]} 56. Kxg6 {[%emt 0:00:06]} 1/2-1/2

[Event "Hungarian Youth-ch I 2024"]
[Site "Szolnok"]
[Date "2024.04.06"]
[Round "9.16"]
[White "Papai, Mate"]
[Black "Hegedus, Zsombor"]
[Result "1-0"]
[ECO "A58"]
[WhiteElo "1887"]
[BlackElo "1759"]
[Annotator "NA RC"]
[PlyCount "113"]
[EventDate "2024.03.31"]
[EventType "swiss"]
[EventCountry "HUN"]
[SourceTitle "playchess.com"]
[Source "ChessBase"]
[SourceQuality "1"]
[TimeControl "5400+30"]

1. d4 {[%emt 0:00:05]} Nf6 {[%emt 0:00:14]} 2. c4 {[%emt 0:00:26]} c5 {[%emt 0:00:17]} 3. d5 {[%emt 0:00:41]} b5 {[%emt 0:00:13]} 4. cxb5 {[%emt 0:00:53]} a6 {[%emt 0:00:35]} 5. bxa6 {[%emt 0:00:53]} g6 {[%emt 0:00:26]} 6. Nc3 {[%emt 0:00:59]} Bg7 {[%emt 0:00:15]} 7. e4 {[%emt 0:00:59]} O-O {[%emt 0:00:35]} 8. Nf3 {[%emt 0:05:51]} Qa5 {[%emt 0:01:45]} 9. a7 {[%emt 0:03:09]} Rxa7 {[%emt 0:08:08]} 10. Bd2 {[%emt 0:01:29]} Qb6 {[%emt 0:08:15]} 11. Qc2 {[%emt 0:06:54]} ({White should play} 11. Bc4 $16) 11... d6 $14 {[%emt 0:01:30]} ({Better is} 11... Ba6 $11) 12. Be2 {[%emt 0:05:26]} Bd7 {[%emt 0:12:51]} 13. O-O {[%emt 0:01:31]} Na6 {[%emt 0:00:16]} 14. a3 {[%emt 0:02:34]} Rfa8 {[%emt 0:02:21]} 15. Rab1 {[%emt 0:03:38]} Rb7 {[%emt 0:06:34]} 16. h3 {[%emt 0:03:39]} Ne8 {[%emt 0:07:28]} 17. Rfe1 {[%emt 0:05:26]} Nec7 {[%emt 0:05:09]} 18. Bf1 {[%emt 0:12:15]} Rab8 {[%emt 0:06:23]} 19. b3 {[%emt 0:04:43]} Nb5 {[%emt 0:07:45]} 20. Bxb5 {[%emt 0:08:32]} Bxb5 {[%emt 0:00:20]} 21. Nxb5 {[%emt 0:02:27]} Qxb5 {[%emt 0:00:15]} 22. Bc3 {[%emt 0:00:43]} Nc7 {[%emt 0:06:37]} 23. Nd2 {[%emt 0:04:40]} Bh6 {[%emt 0:03:48]} 24. Nc4 {[%emt 0:00:44]} f6 {[%emt 0:02:30]} 25. a4 {[%emt 0:01:54]} Qd7 {[%emt 0:00:31]} 26. Na5 {[%emt 0:01:05]} Rb6 {[%emt 0:01:04]} 27. Nc6 {[%emt 0:00:35]} Ra8 {[%emt 0:00:18]} 28. b4 {[%emt 0:02:42]} cxb4 {[%emt 0:00:18]} 29. Rxb4 {[%emt 0:01:39]} Rxb4 {[%emt 0:00:18]} 30. Bxb4 {[%emt 0:00:08]} Na6 {[%emt 0:00:08]} 31. Bc3 {[%emt 0:01:42]} Nc5 {[%emt 0:01:10]} 32. a5 {[%emt 0:00:37]} Bf4 {[%emt 0:00:42]} 33. Bd4 {[%emt 0:01:12]} Na6 {[%emt 0:02:08]} 34. Rb1 {[%emt 0:01:19]} Be5 {[%emt 0:01:06]} 35. Be3 {[%emt 0:02:01]} g5 {[%emt 0:00:41]} 36. Qc4 {[%emt 0:01:31]} g4 {[%emt 0:02:34]} 37. Nxe5 {[%emt 0:03:18]} fxe5 {[%emt 0:00:31]} 38. Qc6 {[%emt 0:00:29]} Qd8 {[%emt 0:00:43]} 39. Bb6 {[%emt 0:00:46]} Qf8 {[%emt 0:00:17]} 40. hxg4 {[%emt 0:00:36]} Kg7 {[%emt 0:04:05]} 41. Be3 {[%emt 0:00:58]} Qd8 {[%emt 0:02:43]} 42. Rb7 {[%emt 0:00:57]} Kf6 {[%emt 0:02:07]} 43. g5+ {[%emt 0:01:12]} Kg6 {[%emt 0:00:15]} 44. Rxe7 {[%emt 0:01:49]} Qxe7 {[%emt 0:03:11]} 45. Qxa8 {[%emt 0:00:05]} Nc5 {[%emt 0:01:15]} 46. Qg8+ {[%emt 0:00:33]} Kh5 {[%emt 0:00:15]} 47. Bxc5 {[%emt 0:01:18]} dxc5 {[%emt 0:00:17]} 48. Qe6 {[%emt 0:00:39]} Qxg5 {[%emt 0:00:51]} 49. Qh3+ {[%emt 0:00:08]} Kg6 {[%emt 0:00:43]} 50. Qg3 {[%emt 0:00:10]} c4 {[%emt 0:00:07]} 51. Qxg5+ {[%emt 0:00:07]} Kxg5 {[%emt 0:00:04]} 52. d6 {[%emt 0:00:27]} Kf6 {[%emt 0:00:16]} 53. d7 {[%emt 0:00:04]} Ke7 {[%emt 0:00:07]} 54. a6 {[%emt 0:00:09]} c3 {[%emt 0:00:49]} 55. a7 {[%emt 0:00:06]} c2 {[%emt 0:00:10]} 56. d8=Q+ {[%emt 0:00:05]} Ke6 {[%emt 0:00:19]} 57. Qc8+ {[%emt 0:00:07]} 1-0

[Event "Hungarian Youth-ch I 2024"]
[Site "Szolnok"]
[Date "2024.04.06"]
[Round "9.17"]
[White "Hegedus, Bernat"]
[Black "Meszaros-Csonka, David"]
[Result "0-1"]
[ECO "A06"]
[WhiteElo "1778"]
[BlackElo "1941"]
[Annotator "RC"]
[PlyCount "116"]
[EventDate "2024.03.31"]
[EventType "swiss"]
[EventCountry "HUN"]
[SourceTitle "playchess.com"]
[Source "ChessBase"]
[SourceQuality "1"]
[TimeControl "5400+30"]

1. Nf3 {[%emt 0:00:16]} d5 {[%emt 0:08:45]} 2. g3 {[%emt 0:00:18]} Nf6 {[%emt 0:00:29]} 3. Bg2 {[%emt 0:00:34]} c6 {[%emt 0:01:37]} 4. O-O {[%emt 0:00:45]} Bf5 {[%emt 0:00:30]} 5. d3 {[%emt 0:00:40]} e6 {[%emt 0:00:10]} 6. c4 {[%emt 0:00:39]} Be7 {[%emt 0:00:13]} 7. Qb3 {[%emt 0:00:55]} Qb6 {[%emt 0:00:16]} 8. Be3 {[%emt 0:00:30]} Qa6 {[%emt 0:01:40]} 9. cxd5 {[%emt 0:07:38]} exd5 {[%emt 0:01:12]} 10. Nd4 {[%emt 0:01:23]} Bg6 {[%emt 0:03:06]} 11. Nc3 {[%emt 0:06:29]} Nbd7 {[%emt 0:01:11]} 12. Bf4 {[%emt 0:11:14]} O-O {[%emt 0:04:53]} 13. Rfd1 {[%emt 0:03:53]} Rfe8 {[%emt 0:09:26]} 14. e4 {[%emt 0:14:09]} Bc5 {[%emt 0:34:21]} 15. Nc2 {[%emt 0:01:23]} dxe4 {[%emt 0:00:31]} 16. dxe4 {[%emt 0:01:33]} Ne5 {[%emt 0:02:05]} 17. Bf1 {[%emt 0:15:00]} Qb6 {[%emt 0:01:16]} 18. Qxb6 {[%emt 0:02:55]} Bxb6 {[%emt 0:00:24]} 19. Bg2 {[%emt 0:01:29]} Neg4 {[%emt 0:01:33]} 20. Ne3 {[%emt 0:05:27]} Nxe3 {[%emt 0:04:04]} 21. Bxe3 {[%emt 0:00:15]} Bxe3 {[%emt 0:00:27]} 22. fxe3 {[%emt 0:00:08]} Bxe4 {[%emt 0:02:30]} 23. Nxe4 {[%emt 0:00:42]} Nxe4 {[%emt 0:00:03]} 24. Rd7 {[%emt 0:00:16]} Nc5 {[%emt 0:00:07]} 25. Rc7 {[%emt 0:00:19]} Rac8 {[%emt 0:01:48]} 26. Rxc8 {[%emt 0:00:15]} Rxc8 {[%emt 0:00:01]} 27. Rd1 {[%emt 0:00:21]} Kf8 {[%emt 0:01:06]} 28. b4 Ne6 29. Rd7 {[%emt 0:02:02]} Rc7 {[%emt 0:00:36]} 30. Rxc7 {[%emt 0:00:37]} Nxc7 {[%emt 0:00:11]} 31. a4 {[%emt 0:01:46]} Ke7 {[%emt 0:03:32]} 32. Kf2 {[%emt 0:01:31]} Kd6 {[%emt 0:00:30]} 33. Ke2 {[%emt 0:00:40]} Nd5 {[%emt 0:00:37]} 34. b5 {[%emt 0:01:05]} Nc3+ {[%emt 0:02:46]} 35. Kd3 {[%emt 0:00:21]} Nxa4 {[%emt 0:00:03]} 36. Kc4 {[%emt 0:00:30]} Nb6+ {[%emt 0:01:56]} 37. Kb4 {[%emt 0:00:15]} Nd5+ {[%emt 0:00:11]} 38. Ka5 {[%emt 0:00:28]} Nxe3 {[%emt 0:01:38]} 39. Be4 {[%emt 0:00:11]} Nc4+ {[%emt 0:01:07]} 40. Kb4 {[%emt 0:00:09]} Ne5 {[%emt 0:00:17]} 41. bxc6 {[%emt 0:00:11]} Nxc6+ {[%emt 0:01:06]} 42. Kb5 {[%emt 0:00:09]} h6 {[%emt 0:00:25]} 43. h4 {[%emt 0:00:14]} Ke5 {[%emt 0:00:29]} 44. Bg2 {[%emt 0:00:10]} Kd4 {[%emt 0:03:04]} 45. g4 {[%emt 0:00:28]} Ke3 {[%emt 0:01:37]} 46. h5 {[%emt 0:00:09]} Kf4 {[%emt 0:00:06]} 47. Bd5 {[%emt 0:00:06]} f6 {[%emt 0:00:25]} 48. Bf7 {[%emt 0:00:12]} Kxg4 {[%emt 0:00:06]} 49. Kc5 {[%emt 0:00:06]} f5 {[%emt 0:00:44]} 50. Kd6 {[%emt 0:00:05]} f4 {[%emt 0:00:53]} 51. Kd7 {[%emt 0:00:05]} Ne5+ {[%emt 0:00:06]} 52. Ke7 {[%emt 0:00:09]} Nxf7 {[%emt 0:00:05]} 53. Kxf7 {[%emt 0:00:07]} Kxh5 {[%emt 0:00:05]} 54. Kg8 {[%emt 0:00:12]} f3 {[%emt 0:00:07]} 55. Kh8 {[%emt 0:00:06]} f2 {[%emt 0:00:05]} 56. Kh7 {[%emt 0:00:09]} f1=Q {[%emt 0:00:08]} 57. Kg8 {[%emt 0:00:04]} Kg6 {[%emt 0:00:07]} 58. Kh8 {[%emt 0:00:03]} Qf8# {[%emt 0:00:13]} 0-1

[Event "Hungarian Youth-ch I 2024"]
[Site "Szolnok"]
[Date "2024.04.06"]
[Round "9.18"]
[White "Jiang, Yaxing"]
[Black "Nagy, Norbert"]
[Result "0-1"]
[ECO "B21"]
[WhiteElo "1529"]
[BlackElo "1629"]
[Annotator "NA RC"]
[PlyCount "60"]
[EventDate "2024.03.31"]
[EventType "swiss"]
[EventCountry "HUN"]
[SourceTitle "playchess.com"]
[Source "ChessBase"]
[SourceQuality "1"]
[TimeControl "5400+30"]

1. e4 {[%emt 0:00:03]} c5 {[%emt 0:00:06]} 2. d4 {[%emt 0:00:38]} cxd4 {[%emt 0:00:07]} 3. c3 {[%emt 0:00:10]} dxc3 {[%emt 0:00:04]} 4. Nxc3 {[%emt 0:00:12]} Nc6 {[%emt 0:00:04]} 5. Nf3 {[%emt 0:00:45]} d6 {[%emt 0:00:09]} 6. Bc4 {[%emt 0:01:45]} e6 {[%emt 0:00:05]} 7. O-O {[%emt 0:00:34]} Be7 {[%emt 0:00:05]} 8. Qe2 {[%emt 0:01:09]} a6 {[%emt 0:00:10]} 9. Rd1 {[%emt 0:00:22]} Bd7 {[%emt 0:00:10]} 10. Bf4 {[%emt 0:00:38]} e5 {[%emt 0:00:06]} 11. Be3 {[%emt 0:00:27]} Nf6 {[%emt 0:00:10]} 12. Bb3 {[%emt 0:01:05]} O-O {[%emt 0:00:31]} 13. Na4 {[%emt 0:01:19]} b5 {[%emt 0:01:27]} 14. Nc3 {[%emt 0:00:57]} h6 {[%emt 0:01:06]} 15. Nd5 {[%emt 0:04:44]} Nxd5 {[%emt 0:01:22]} 16. Bxd5 {[%emt 0:02:45]} Rc8 {[%emt 0:01:07]} 17. Rac1 {[%emt 0:01:24]} Nb4 {[%emt 0:04:33]} 18. Bb3 {[%emt 0:04:10]} Be6 {[%emt 0:03:18]} 19. Bxe6 {[%emt 0:08:23]} fxe6 {[%emt 0:01:35]} 20. a3 {[%emt 0:00:22]} Nc6 {[%emt 0:01:06]} 21. Qd2 Qa5 {[%emt 0:02:08]} 22. Qxa5 {[%emt 0:21:06]} Nxa5 {[%emt 0:02:03]} 23. b4 {[%emt 0:06:51]} Nc4 {[%emt 0:01:18]} 24. Rc3 {[%emt 0:05:16]} Nxe3 {[%emt 0:02:48]} 25. Rxe3 {[%emt 0:00:51]} Rc4 {[%emt 0:00:24]} 26. Nd2 {[%emt 0:00:41]} Rd4 {[%emt 0:00:49]} 27. Re2 {[%emt 0:01:24]} Rc8 {[%emt 0:00:18]} 28. f3 {[%emt 0:01:34]} Rd3 {[%emt 0:00:37]} 29. Ra1 {[%emt 0:02:21]} Rc2 {[%emt 0:00:14]} 30. Rd1 Bg5 0-1

[Event "Hungarian Youth-ch I 2024"]
[Site "Szolnok"]
[Date "2024.04.06"]
[Round "9.19"]
[White "Kertesz, Adam"]
[Black "Golya, David"]
[Result "0-1"]
[ECO "D15"]
[WhiteElo "1508"]
[BlackElo "1672"]
[Annotator "NA RC"]
[PlyCount "64"]
[EventDate "2024.03.31"]
[EventType "swiss"]
[EventCountry "HUN"]
[SourceTitle "playchess.com"]
[Source "ChessBase"]
[SourceQuality "1"]
[TimeControl "5400+30"]

1. d4 {[%emt 0:00:02]} d5 {[%emt 0:00:07]} 2. c4 {[%emt 0:00:24]} c6 {[%emt 0:00:03]} 3. Nc3 {[%emt 0:00:45]} Nf6 {[%emt 0:00:09]} 4. Nf3 {[%emt 0:01:07]} Bf5 {[%emt 0:00:20]} 5. e3 {[%emt 0:00:57]} e6 {[%emt 0:00:17]} 6. Bd3 {[%emt 0:00:48]} Bxd3 {[%emt 0:00:26]} 7. Qxd3 {[%emt 0:00:31]} Bb4 {[%emt 0:00:06]} 8. Bd2 {[%emt 0:02:49]} Nbd7 {[%emt 0:01:21]} 9. cxd5 {[%emt 0:01:49]} exd5 {[%emt 0:00:33]} 10. O-O {[%emt 0:02:42]} Bxc3 {[%emt 0:05:18]} 11. Bxc3 {[%emt 0:02:11]} Qc7 {[%emt 0:04:05]} 12. Rac1 {[%emt 0:05:40]} O-O-O {[%emt 0:03:12]} 13. b4 {[%emt 0:03:01]} Kb8 {[%emt 0:07:11]} 14. a4 {[%emt 0:02:52]} h5 {[%emt 0:02:07]} 15. a5 {[%emt 0:05:37]} a6 {[%emt 0:04:12]} 16. Qf5 {[%emt 0:02:59]} g6 {[%emt 0:03:16]} 17. Qf4 {[%emt 0:03:56]} Qxf4 {[%emt 0:00:13]} 18. exf4 {[%emt 0:00:29]} h4 {[%emt 0:00:41]} 19. h3 {[%emt 0:01:26]} Ne4 {[%emt 0:02:47]} 20. Rfe1 {[%emt 0:02:20]} Ndf6 {[%emt 0:02:03]} 21. Ne5 {[%emt 0:03:33]} Rh7 {[%emt 0:04:39]} 22. Bb2 {[%emt 0:04:33]} Nh5 {[%emt 0:03:51]} 23. Nd3 {[%emt 0:02:23]} Rg7 {[%emt 0:01:10]} 24. f3 {[%emt 0:04:00]} Neg3 {[%emt 0:01:40]} 25. Re5 {[%emt 0:02:48]} f6 {[%emt 0:03:15]} 26. Re6 {[%emt 0:01:38]} g5 {[%emt 0:00:09]} 27. fxg5 {[%emt 0:01:04]} Rxg5 {[%emt 0:00:08]} 28. Rce1 {[%emt 0:01:06]} Rgg8 {[%emt 0:01:04]} 29. Nf2 {[%emt 0:04:04]} Nf4 {[%emt 0:03:13]} 30. Rxf6 {[%emt 0:02:09]} Ngh5 {[%emt 0:00:06]} 31. Rf7 {[%emt 0:01:17]} Rxg2+ {[%emt 0:00:08]} 32. Kf1 {[%emt 0:00:42]} Ng3# {[%emt 0:00:05]} 0-1